Cogmind - Beta 12 @@@ ROGUE MODE // 2023.08.03 @ 17:54:11 Player: Roxy Result: Destroyed by Y-54 Guardian with Flak Gun Performance ------------- Evolutions (3) 1500 Regions Visited (5) 1000 Robots Destroyed (74) 370 Value Destroyed (2199) 2199 Prototype IDs (1) 20 Alien Tech Used (0) 0 Bonus (240) 240 TOTAL SCORE: 5329 Bonus ------- High Alert Combat Kills 240 Cogmind --------- Core Integrity 0/700 Matter 282/300 Energy 468/515 System Corruption 0% Temperature Cool (39) Movement Walking (190) Ox1 Location -7/Storage Parts ------- > --- POWER (3) -------- Light Ion Engine Improved Deuterium Engine > --- PROPULSION (3) --- Aluminum Leg Aluminum Leg Carbon-fiber Leg > --- UTILITY (3) ------ Large Storage Unit Large Battery Hardened Medium Armor Plating > --- WEAPON (4) ------- EM Pulse Cannon Ion Cannon Flak Gun > --- INVENTORY (15) --- Aluminum Leg Cryofiber Web Heat Sink Small Matter Pod (50) Weight Redist. System Advanced Targeting Computer Hardlight Generator Peak State ------------ > --- POWER ------------ Improved Ion Engine Improved Ion Engine Deuterium Engine > --- PROPULSION ------- Wheel Wheel Compact Wheel > --- UTILITY ---------- Large Storage Unit Advanced Weight Redist. System Hardlight Generator > --- WEAPON ----------- Heavy EM Pulse Gun Beam Rifle Light Assault Rifle Rocket Launcher > --- INVENTORY -------- Nuclear Core Nuclear Core Light Nuclear Core Aluminum Leg Aluminum Leg Cryofiber Web Heat Sink Large Battery Small Matter Pod Weight Redist. System Advanced Targeting Computer Hardlight Generator Shock Rifle Particle Gun [Rating: 27] Favorites ----------- Power Improved Ion Engine Engine Improved Ion Engine Power Core Nuclear Core Propulsion Wheel Leg Aluminum Leg Wheel Wheel Utility Large Storage Unit Device Heat Sink Storage Large Storage Unit Protection Light Armor Plating Weapon Light Assault Rifle Energy Gun Beam Rifle Energy Cannon Ion Cannon Ballistic Gun Light Assault Rifle Launcher Rocket Launcher Build | -11 -10 -9 -8 -7 -7 ------- Run | Jun Mat Mat Mat Fac Sto Slots Evolved 6 | . . 2 2 2 . Power 2 | . . . 1 1 . Propulsion 1 | . . . 1 . . Utility 1 | . . 1 . . . Weapon 2 | . . 1 . 1 . Parts Attached 60 | 6 3 5 16 16 14 Power 12 | 1 . 1 3 5 2 Engine 8 | 1 . 1 3 1 2 Core 4 | . . . . 4 . Reactor . | . . . . . . Propulsion 13 | 2 . 1 5 1 4 Treads . | . . . . . . Leg 3 | . . . . . 3 Wheel 10 | 2 . 1 5 1 1 Hover . | . . . . . . Flight . | . . . . . . Utility 10 | 1 1 1 3 3 1 Device 5 | 1 . . 2 2 . Storage 3 | . 1 . 1 1 . Processor . | . . . . . . Hackware . | . . . . . . Protection 2 | . . 1 . . 1 Artifact . | . . . . . . Weapon 25 | 2 2 2 5 7 7 Energy Gun 7 | 1 . 1 2 3 . Energy Cannon 2 | . . . . . 2 Ballistic Gun 10 | 1 1 . 2 2 4 Ballistic Cannon . | . . . . . . Launcher 6 | . 1 1 1 2 1 Special Weapon . | . . . . . . Impact Weapon . | . . . . . . Slashing Weapon . | . . . . . . Piercing Weapon . | . . . . . . Special Melee Weapon . | . . . . . . Unidentified Prototypes . | . . . . . . Parts Lost 37 | . . 2 9 19 7 Power 9 | . . . 2 7 . Propulsion 9 | . . 1 3 3 2 Utility 3 | . . . 1 2 . Weapon 16 | . . 1 3 7 5 Highest Loss Streak 6 | . . 1 4 6 3 To Critical Strikes 1 | . . . 1 . . Average Slot Usage (%) 81 | . 89 100 97 74 48 Engine 11 | . 14 11 17 10 2 Core 1 | . . . . 3 . Leg 1 | . . . . . 10 Wheel 18 | . 28 22 26 15 3 Device 11 | . 14 11 17 13 . Storage 9 | . 3 11 9 7 15 Protection 2 | . . 11 . . 1 Energy Gun 10 | . 14 11 15 11 . Ballistic Gun 8 | . 11 11 9 4 9 Launcher 3 | . 2 10 . 5 . Naked Turns . | . . . . . . Heaviest Build 60 | 6 16 27 52 59 60 Greatest Support 45 | 20 20 20 36 45 35 Greatest Overweight (x) 2 | . . 1 1 2 2 Average Overweight (x) . | . . 1 . 1 1 Largest Inventory Capacity 15 | 5 10 10 15 15 15 Average Capacity 13 | 5 6 10 14 15 15 Most Carried 15 | 5 7 10 15 14 12 Average Carried 10 | 2 5 8 12 11 9 Final Capacity 15 | 5 10 10 15 15 15 Final Carried 15 | 4 7 9 15 10 7 Class Distribution -------------------- 40% | Mutant 38% | Scavenger-Tank 8% | Scavenger-Mutant 6% | Tank 6% | Scavenger-Gunner Dominant Class ---------------- Mutant | -10/Materials Mutant | -9/Materials Scavenger-Tank | -8/Materials Mutant | -7/Factory Mutant | -7/Storage Resources | -11 -10 -9 -8 -7 -7 ----------- Run | Jun Mat Mat Mat Fac Sto Matter Collected 1182 | 264 19 156 218 177 348 Remotely . | . . . . . . Salvage Created 2552 | 34 42 493 1089 467 427 Parts 162 | 2 5 34 76 27 18 Haulers Intercepted . | . . . . . . Recyclers Shooed . | . . . . . . Parts Field Recycled . | . . . . . . Retrieved Matter . | . . . . . . Parts Self-Destructed . | . . . . . . Prevented . | . . . . . . Kills | -11 -10 -9 -8 -7 -7 ------- Run | Jun Mat Mat Mat Fac Sto Combat Hostiles Destroyed 58 | 1 3 9 27 10 8 Guns 37 | 1 . 4 22 3 7 Cannons 1 | . . . . . 1 AOE 19 | . 3 5 5 6 . Classes Destroyed 9 | 1 1 4 3 . . Worker 5 | . . 2 1 2 . Builder 4 | . . 1 2 1 . Recycler 2 | . . . 1 1 . Mechanic 1 | . . . 1 . . Watcher 4 | . . 1 2 1 . Swarmer 21 | . 3 . 14 4 . Grunt 20 | 1 . 6 7 3 3 Sentry 15 | . . 3 5 3 4 Hunter 2 | . . . 1 . 1 Best Kill Streak 13 | 1 3 7 13 7 3 Combat Bots Only 6 | 1 3 6 4 4 3 Max Kills in Single Turn 4 | 1 3 2 4 4 1 Gunslinging 1 | . . . 1 . . Exploded 4 | . 3 2 4 3 . Melee . | . . . . . . Uniques/NPCs Destroyed . | . . . . . . Combat | -11 -10 -9 -8 -7 -7 -------- Run | Jun Mat Mat Mat Fac Sto Damage Taken 3777 | 12 125 290 796 1390 1164 Core 900 | 12 37 24 127 375 325 Absorbed by Shields 294 | . . . 270 24 . Core Remaining (%) 86 | 95 80 94 76 . . Volleys Fired 168 | 4 8 22 58 41 35 Largest 3 | 2 2 3 3 3 3 Hottest 166 | 60 73 105 154 166 151 Shots Fired 375 | 8 16 51 161 78 61 Gun 349 | 8 15 45 159 74 48 Cannon 12 | . . . . . 12 Launcher 14 | . 1 6 2 4 1 Special . | . . . . . . Kinetic 180 | 4 7 22 76 23 48 Thermal 114 | 4 8 22 49 22 9 Explosive 7 | . . . 2 4 1 Electromagnetic 74 | . 1 7 34 29 3 Robot Hit Streak 14 | 3 5 9 9 14 13 Robot Miss Streak 6 | 1 5 4 4 4 6 Penetration Max 1 | . . . . . 1 Secondary Targets 6 | . . . 6 . . Max Gunslinging Chain 1 | . . . 1 . . Shots Hit Robots 235 | 5 7 35 95 49 44 Core Hits 165 | 3 4 23 61 36 38 Critical Kills 1 | . . . 1 . . Critical Parts Destroyed . | . . . . . . Critical Strikes 3 | . . . 1 2 . Burn 2 | . . . . 2 . Destroy 1 | . . . 1 . . Melee Attacks . | . . . . . . Impact . | . . . . . . Slashing . | . . . . . . Piercing . | . . . . . . Sneak Attacks . | . . . . . . Combat Hostiles . | . . . . . . Follow-up Attacks . | . . . . . . Damage Inflicted 4474 | 43 153 547 1530 1336 865 Guns 2923 | 43 59 302 1125 668 726 Cannons 126 | . . . . . 126 Explosions 1419 | . 92 245 405 668 9 Melee . | . . . . . . Ramming 6 | . 2 . . . 4 Kinetic 1517 | 20 28 125 369 249 726 Thermal 1200 | 23 71 193 558 264 91 Explosive 767 | . . . 205 553 9 Electromagnetic 970 | . 52 229 398 270 21 Impact 14 | . . . . . 14 Slashing . | . . . . . . Piercing . | . . . . . . Highest Corruption . | . . . . . . Average Corruption . | . . . . . . Corruption Purged . | . . . . . . Corruption Blocked . | . . . . . . Overload Shots . | . . . . . . Overflow Damage 62 | . . . 18 44 . Projectiles . | . . . . . . Explosions 62 | . . . 18 44 . Melee . | . . . . . . Knockbacks . | . . . . . . Impact . | . . . . . . Kinetic . | . . . . . . Secondary . | . . . . . . Self-Inflicted Damage 137 | . 1 . . 134 2 Shots 5 | . . . . 5 . Rammed 2 | . 1 . . . 1 Targets Rammed 2 | . 1 . . . 1 Kicked . | . . . . . . Crushed . | . . . . . . Highest Temperature 397 | 26 . 27 257 397 168 Average Temperature 86 | 15 . 9 56 183 48 Received Heat Transfer 1055 | 6 6 132 235 322 354 Effects 1 | . . . . 1 . Shutdowns 1 | . . . . 1 . Siege Activations . | . . . . . . Robots Corrupted . | . . . . . . Combat Hostiles . | . . . . . . Parts Fried 3 | . . 1 . 2 . Impact Corruptions . | . . . . . . Robots Melted 1 | . . . . 1 . Combat Hostiles 1 | . . . . 1 . Parts Melted 3 | . . . 3 . . Heat Transferred 2543 | 50 75 450 1141 679 148 Parts Sabotaged . | . . . . . . Parts Stolen . | . . . . . . Parts Stripped . | . . . . . . Power Chain Reactions 7 | . 1 2 3 1 . Missiles Intercepted . | . . . . . . Alert | -11 -10 -9 -8 -7 -7 ------- Run | Jun Mat Mat Mat Fac Sto Peak Influence 757 | 20 116 320 757 451 448 Initial 344 | . 13 48 135 344 188 Average 350 | 3 72 127 517 361 329 Maximum Alert Level 3 | . . 1 3 2 2 Low Security (%) 26 | 100 100 90 11 . 13 Level 1 37 | . . 9 10 79 60 Level 2 30 | . . . 59 20 26 Level 3 6 | . . . 18 . . Level 4 . | . . . . . . Level 5 . | . . . . . . High Security . | . . . . . . Max Security . | . . . . . . Squads Dispatched 8 | . 1 3 1 1 2 Investigation 2 | . . 1 . 1 . Extermination . | . . . . . . Reinforcement 6 | . 1 2 1 . 2 Assault . | . . . . . . Garrison . | . . . . . . Intercept . | . . . . . . Searches Triggered . | . . . . . . Construction Impeded . | . . . . . . Haulers Reinforced 1 | . . . . . 1 Active Scanning Responses . | . . . . . . Cargo Convoy Interrupts . | . . . . . . Stealth | -11 -10 -9 -8 -7 -7 --------- Run | Jun Mat Mat Mat Fac Sto Distress Signals 5 | . 2 1 2 . . Communications Jammed . | . . . . . . Distress Signals . | . . . . . . Times Spotted 83 | 1 9 14 33 16 10 Peak Tracking Total 6 | 1 6 5 6 5 3 Tactical Retreats 3 | . . . 2 1 . Traps | -11 -10 -9 -8 -7 -7 ------- Run | Jun Mat Mat Mat Fac Sto Traps Triggered 5 | . . 1 . 1 3 Indirectly . | . . . . . . Trap Hack Attempts . | . . . . . . Triggered . | . . . . . . Disarmed . | . . . . . . Reprogrammed . | . . . . . . Reused . | . . . . . . Traps Extracted . | . . . . . . Installed . | . . . . . . Triggered . | . . . . . . Machines | -11 -10 -9 -8 -7 -7 ---------- Run | Jun Mat Mat Mat Fac Sto Machines Disabled 8 | . 1 . 4 2 1 Max in Single Turn 3 | . 1 . 3 2 1 Machines Repaired . | . . . . . . Machines Sabotaged . | . . . . . . Overloaded Fab Kills . | . . . . . . Hacking | -11 -10 -9 -8 -7 -7 --------- Run | Jun Mat Mat Mat Fac Sto Machines Accessed 4 | . . 2 1 1 . Terminals 2 | . . 1 1 . . Fabricators . | . . . . . . Repair Stations . | . . . . . . Recycling Units 1 | . . 1 . . . Scanalyzers 1 | . . . . 1 . Garrison Access . | . . . . . . Total Hacks 7 | . . 2 1 4 . Successful 6 | . . 2 1 3 . Failed 1 | . . . . 1 . Catastrophic . | . . . . . . Database Lockouts . | . . . . . . Manual . | . . . . . . Terminals 2 | . . 1 1 . . Fabricators . | . . . . . . Repair Stations . | . . . . . . Recycling Units 1 | . . 1 . . . Scanalyzers 4 | . . . . 4 . Garrison Access . | . . . . . . Terminal Hacks 2 | . . 1 1 . . Record 1 | . . 1 . . . Alert Level 1 | . . . 1 . . Fabricator Hacks . | . . . . . . Repair Station Hacks . | . . . . . . Recycling Unit Hacks 1 | . . 1 . . . Report Inventory 1 | . . 1 . . . Scanalyzer 3 | . . . . 3 . Insert Component 1 | . . . . 1 . Analyze 2 | . . . . 2 . Garrison Access Hacks . | . . . . . . Unauthorized Hacks . | . . . . . . Terminals . | . . . . . . Fabricators . | . . . . . . Repair Stations . | . . . . . . Recycling Units . | . . . . . . Scanalyzers . | . . . . . . Garrison Access . | . . . . . . Data Cores Recovered . | . . . . . . Used . | . . . . . . Hacking Detections 1 | . . 1 . . . Full Trace Events . | . . . . . . Feedback Events . | . . . . . . Feedback Blocked . | . . . . . . Robot Schematics Acquired . | . . . . . . Robots Built . | . . . . . . Authchips . | . . . . . . Time . | . . . . . . Total Robot Build Rating . | . . . . . . Part Schematics Acquired 1 | . . . . 1 . Parts Built . | . . . . . . Authchips . | . . . . . . Time . | . . . . . . Total Part Build Rating . | . . . . . . Parts Repaired . | . . . . . . Time . | . . . . . . Parts Recycled . | . . . . . . Recycled Matter . | . . . . . . Retrieved Matter . | . . . . . . Retrieved Components . | . . . . . . Parts Scanalyzed 1 | . . . . 1 . Part Schematics Acquired 1 | . . . . 1 . Parts Damaged . | . . . . . . Bothacking | -11 -10 -9 -8 -7 -7 ------------ Run | Jun Mat Mat Mat Fac Sto Used RIF Installer . | . . . . . . Robots Hacked . | . . . . . . Non-combat . | . . . . . . Combat . | . . . . . . Robot Hacks Applied . | . . . . . . Relay Couplers Released . | . . . . . . Fabnet Peak Effective % . | . . . . . . Robots Rewired . | . . . . . . Allies Hacked . | . . . . . . Hacks Repelled . | . . . . . . Allies | -11 -10 -9 -8 -7 -7 -------- Run | Jun Mat Mat Mat Fac Sto Total Allies . | . . . . . . Largest Group . | . . . . . . Highest-Rated Group . | . . . . . . Highest-Rated Ally . | . . . . . . Total Orders . | . . . . . . Ally Attacks . | . . . . . . Total Damage . | . . . . . . Kills . | . . . . . . Allies Corrupted . | . . . . . . Allies Melted . | . . . . . . Intel | -11 -10 -9 -8 -7 -7 ------- Run | Jun Mat Mat Mat Fac Sto Robot Analysis Total . | . . . . . . Derelict Logs Recovered . | . . . . . . Drone Launches . | . . . . . . Drone Recoveries . | . . . . . . Exploration | -11 -10 -9 -8 -7 -7 ------------- Run | Jun Mat Mat Mat Fac Sto Turns Passed 2438 | 81 116 319 796 681 445 Spaces Moved 1731 | 74 105 238 576 526 212 Core 17 | 17 . . . . . Treads . | . . . . . . Legs 106 | . . . . . 106 Wheels 1608 | 57 105 238 576 526 106 Hover . | . . . . . . Flight . | . . . . . . Fastest Speed 50 | 50 80 95 86 95 100 Average Speed 102 | 73 80 95 99 98 151 Slowest Speed 190 | 80 80 95 105 110 190 Overloaded Moves . | . . . . . . Propulsion Burnouts . | . . . . . . Robots Hopped . | . . . . . . Cave-ins Triggered . | . . . . . . Exploration Rate (%) 26 | 5 28 23 47 15 39 Regions Visited 5 Branch Regions 1 Pre-discovered Areas . | . . . . . . Known Exits Taken . | . . . . . . Unknown Exits Taken 5 | 1 1 1 1 1 . Scrap Searched . | . . . . . . Spaces Dug . | . . . . . . Terrain Destroyed 110 | . 3 . 27 70 10 Melee . | . . . . . . Projectile . | . . . . . . AOE 110 | . 3 . 27 70 10 Terrain Rammed . | . . . . . . Walls Destroyed . | . . . . . . Machines Disabled . | . . . . . . Actions | -11 -10 -9 -8 -7 -7 --------- Run | Jun Mat Mat Mat Fac Sto Total 2095 | 93 121 291 691 618 281 Wait 56 | . . 14 16 26 . Move 1726 | 73 104 237 575 525 212 Hop . | . . . . . . Pick Up 64 | 10 4 9 21 9 11 Fast Attach 1 | . 1 . . . . Attach 48 | 6 . 4 11 13 14 Detach . | . . . . . . Swap 11 | . 2 1 5 3 . Drop 11 | . 1 4 5 1 . Fire 168 | 4 8 22 58 41 35 Melee . | . . . . . . Ram 2 | . 1 . . . 1 Kick . | . . . . . . Crush . | . . . . . . Escape Stasis 8 | . . . . . 8 Rewire . | . . . . . . Trap . | . . . . . . Miscellaneous . | . . . . . . Route ------- -11/Junkyard -10/Materials -9/Materials -8/Materials -7/Factory -7/Storage History --------- Turn | Location | Event 2 | -11/Junkyard | Met Revision 17 55 | -11/Junkyard | Discovered new exit (range 8) 82 | -11/Junkyard | Entered Materials 186 | -10/Materials | Discovered new exit (range 16) 198 | -10/Materials | Entered another Materials area 198 | -9/Materials | Evolved 2 slots: Utility x1, Weapon x1 486 | -9/Materials | Discovered new exit (range 15) 517 | -9/Materials | Entered another Materials area 517 | -8/Materials | Evolved 2 slots: Power x1, Propulsion x1 765 | -8/Materials | Lost 3 parts (1p1n1w) 892 | -8/Materials | Lost 4 parts (1p1n1u1w) 1201 | -8/Materials | Build established: Scavenger-Tank 1310 | -8/Materials | Discovered new exit (range 4) 1313 | -8/Materials | Entered Factory 1313 | -7/Factory | Evolved 2 slots: Power x1, Weapon x1 1543 | -7/Factory | Lost 4 parts (1p1n1u1w) 1569 | -7/Factory | Found Prototype Launcher 1599 | -7/Factory | Identified Rocket Array 1707 | -7/Factory | Lost 6 parts (2p4w) 1892 | -7/Factory | Lost 6 parts (3p1n2w) 1918 | -7/Factory | Core integrity fell below 50% 1957 | -7/Factory | Build established: Mutant 1982 | -7/Factory | Discovered new exit (range 12) 1994 | -7/Factory | Entered Storage 2103 | -7/Storage | Lost 3 parts (1n2w) 2186 | -7/Storage | Core integrity fell below 20% 2216 | -7/Storage | Lost 3 parts (1n2w) 2439 | -7/Storage | Destroyed by Y-54 Guardian with Flak Gun Last Messages --------------- Acquired 10 matter. U-05 Engineer lays Concrete. U-05 Engineer builds a Wall. U-05 Engineer lays Concrete. U-05 Engineer builds a Wall. Acquired 30 matter. U-05 Engineer lays Concrete. U-05 Engineer builds a Wall. Acquired EM Pulse Cannon. K-01 Serf collects debris. U-05 Engineer builds a Door. Triggered Heavy Explosive Trap. An explosion rips through the floor. U-05 Engineer destroyed. K-01 Serf collects debris. Acquired Lgt. Ion Engine. K-01 Serf collects debris. Acquired 17 matter. K-01 Serf collects debris. Component Storage disabled. Map ----- +----------------------------------------------------+ | ?????## # #??????????????????????????? | | ??????# # #??????????????????????????? | | ??????#% ! # #??????????????????????????? | | ?????#! + #??????????????????????????? | | ?????## """ """ # #??????????????????????????? | | ??????# """ """ # #???????"??????????????????? | | ??????# """ """ # ## """??????????????????? | | ??????############# % / #????????????????? | | ????????????????####+###### #????????????????????? | | ????????????????# #???????????????????????? | | ????????????????# #???????????????????????? | | ????????????????# #???????????????????????? | | ????????????????# #???????????????????????? | | ????????????????# / #???????????????????????? | | ????????????????# #???????????????????????? | | ????????????????# #???????????????????????? | | ????????????????# ! #???????????????????????? | | ????????????????# #???????????????????????? | | ????????????????##/############??????????????????? | | ?????????????????# #????# #??????????????????? | | ????????#######?## ###### #??????????????????? | | ????????#######?# m ## #??????????????????? | | ????????## ### # #??????????????????? | | ????????##!% *%| | """ #??????????????????? | | ????????## ! k """ #??????????????????? | | ????????## #### #@""" #??????????????????? | | ????????### #### ## "" #??????????????????? | | ########### ############Y""" #??????????????????? | | # =#??###?????# #??????????????????? | | # #### ####### #??????????????????? | | # # ## #??????????????????? | | # # #### ###??????????????????? | | ] # # """ """ #???##????????????????????? | | ] + + """ """ #?????????????????????????? | | # # """ """ #?????????????????????????? | | ########### # """ """ #?????????????????????????? | | ?????# # """ """ #?????????????????????????? | | ?????# # ??????????????????????????? | | ?????# %####+#########???????????????????????????? | | ?????# #?? #???????????????????????????????????? | | ?????# #?? ???????????????????????????????????? | | ?????# T## "???????????????????????????????????? | | ?????# ####T#???????????????????????????????????? | | ?????""""??###???????????????????????????????????? | | ?????????????????????????????????????????????????? | | ?????????????????????????????????????????????????? | | ?????????????????????????????????????????????????? | | ?????????????????????????????????????????????????? | | ?????????????????????????????????????????????????? | | ?????????????????????????????????????????????????? | +----------------------------------------------------+ Best States ------------- Heat Dissipation 41 Energy Generation 28 Energy Capacity 605 Matter Stores 300 Matter Capacity 300 Sight Range 16 Terrain Scan Density 10 Additional Mass Support 9 Base Temperature (-) 100 Armor Coverage 225 Evasion (%) 50 Item Schematics ----------------- Rocket Array | -7/Factory | Scanalyzed Robot Schematics ------------------ None Fabricated ------------ Nothing Alien Tech Used ----------------- None Achievements -------------- Please Form A Line Safety First Challenges ------------ None Game ------ Seed SpikedModifiedDriver Manual? 0 Play Time 00:45:04 Cumulative 2.6 hours Start 2023.08.03 @ 16:57:51 End 2023.08.03 @ 17:54:11 Sessions 1 Manual Loads 0 Difficulty Rogue Special Mode None Game No. 2 Rogue 2 Adventurer 0 Explorer 0 Win Type - Total 0 Types 0/0/0/0/0/0/0/0/0 Lore% 4 Gallery% 6 Achievement% 5 Wizard Run 0 Options --------- ASCII 0 Keyboard 0 Movement Mouse Keybinds 0 Fullscreen 1 Font 18/SmallcapsGlow Map View 76x50 Tactical HUD 0 Map Filters NONE Filters NONE Steam 1 RUN: ff9cd7c3-3489-42fa-adbe-59e7f49209d9